bitfinex-derivatives/quotes_SOLF0:USTF0_20250310
["timestamp","ask_amount","ask_price","bid_price","bid_amount"]
[1741587980762,0.05067107,127.58,127.57,45.42641244]
[1741587986066,0.05067107,127.58,127.57,37.58781244]
[1741587988170,0.05067107,127.58,127.57,28.72]
[1741587988568,0.05067107,127.58,127.51,211.4685389]
[1741587988873,0.05067107,127.58,127.54,8.86781244]
[1741587989269,8.91848351,127.58,127.54,8.86781244]
[1741587989472,8.86781244,127.57,127.52,16.70921244]
[1741587989768,8.86781244,127.56,127.53,28.7]
[1741587990168,8.92094892,127.56,127.53,28.7]
[1741587990572,0.05313648,127.56,127.53,45.40881244]
[1741587990772,0.05313648,127.56,127.54,8.86781244]
[1741587991374,0.05313648,127.56,127.53,37.56781244]
[1741587991778,0.05313648,127.56,127.53,36.5408]
[1741587991978,0.05313648,127.56,127.53,28.7]
[1741587993380,0.05313648,127.56,127.53,36.5411]
[1741587993681,8.92094892,127.56,127.51,8.86781244]
[1741587993880,8.86781244,127.55,127.51,28.7]
[1741587994084,8.92094892,127.56,127.51,37.56781244]
[1741587994280,8.92094892,127.56,127.52,8.86781244]
[1741587994679,0.05313648,127.56,127.52,8.86781244]
[1741587995677,0.05313648,127.56,127.51,28.7]
[1741587995883,7.8402,127.55,127.51,45.40991244]
[1741587997084,7.8402,127.55,127.52,8.86781244]
[1741587997483,8.92094892,127.56,127.52,8.86781244]
[1741587997683,16.76054892,127.56,127.52,16.70951244]
[1741587997981,8.92094892,127.56,127.52,8.86781244]
[1741587998682,7.8402,127.55,127.52,8.86781244]
[1741587999286,7.8406,127.54,127.51,37.56781244]
[1741587999478,8.86781244,127.55,127.51,28.7]
[1741587999778,8.92094892,127.56,127.51,28.7]
[1741587999978,8.92094892,127.56,127.51,37.56781244]
[1741588000181,7.8403,127.55,127.51,45.41011244]
[1741588000379,7.8403,127.55,127.51,37.56781244]
[1741588001378,7.8405,127.54,127.51,37.56781244]
[1741588002284,8.86781244,127.55,127.51,28.7]
[1741588002478,7.8415,127.53,127.51,28.7]
[1741588002781,7.8415,127.53,127.49,45.41111244]
[1741588002982,7.89981448,127.53,127.49,45.41111244]
[1741588003582,0.05831448,127.53,127.49,37.56781244]
[1741588004285,0.05831448,127.53,127.5,7.8429]
[1741588004581,0.05831448,127.53,127.49,37.56781244]
[1741588004782,7.89951448,127.53,127.49,45.41091244]
[1741588004988,7.89951448,127.53,127.49,37.56781244]
[1741588004989,0.05831448,127.53,127.49,37.56781244]
[1741588005390,0.05831448,127.53,127.5,7.8426]
[1741588007690,0.05831448,127.53,127.49,37.56781244]
[1741588007885,16.76722692,127.53,127.49,7.8432]
[1741588008093,8.92612692,127.53,127.48,37.56781244]
[1741588008294,8.92612692,127.53,127.48,8.86781244]
[1741588008593,9.833,127.52,127.48,45.41161244]
[1741588008988,10.85891244,127.52,127.47,8.86781244]
[1741588009185,8.86781244,127.51,127.46,10.97421244]
[1741588009392,8.92613443,127.51,127.46,37.56781244]
[1741588009587,7.8434,127.5,127.46,16.71291244]
[1741588010791,16.76873443,127.51,127.47,7.8447]
[1741588010997,0.05832199,127.51,127.47,8.86781244]
[1741588011383,0.05832199,127.51,127.48,7.8438]
[1741588011590,0.05832199,127.51,127.49,8.86781244]
[1741588012995,0.05832199,127.51,127.5,7.8429]
[1741588014693,0.05832199,127.51,127.49,16.71111244]
[1741588014902,0.05832199,127.51,127.49,8.86781244]
[1741588015590,0.05832199,127.51,127.5,7.8429]
[1741588022804,0.05832199,127.51,127.5,9.922]
[1741588024897,0.05832199,127.51,127.5,7.8429]
[1741588025504,0.05832199,127.51,127.5,16.71071244]
[1741588027593,0.05832199,127.51,127.5,7.8429]
[1741588027800,0.05832199,127.51,127.49,10.90631244]
[1741588027994,0.05832199,127.51,127.49,18.74951244]
[1741588028197,0.05832199,127.51,127.49,10.90631244]
[1741588028902,8.86781244,127.59,127.5,8.86781244]
[1741588029101,8.86781244,127.59,127.54,8.86781244]
[1741588029408,7.8387,127.57,127.54,45.40801244]
[1741588029705,8.86781244,127.58,127.54,28.7]
[1741588029999,7.8392,127.56,127.55,0.05933549]
[1741588030201,8.91976568,127.57,127.55,0.05933549]
[1741588030400,8.86781244,127.56,127.55,0.05933549]
[1741588030701,16.70701244,127.56,127.55,0.05933549]
[1741588031406,16.75876568,127.57,127.55,0.05933549]
[1741588031604,7.89095324,127.57,127.55,0.05933549]
[1741588032006,0.05195324,127.57,127.55,0.05933549]
[1741588032206,7.8392,127.56,127.55,0.05933549]
[1741588033709,7.89085324,127.57,127.55,0.05933549]
[1741588033911,0.05195324,127.57,127.55,0.05933549]
[1741588034205,7.89075324,127.57,127.55,0.05933549]
[1741588034612,7.8392,127.56,127.55,0.05933549]
[1741588034906,8.86781244,127.56,127.51,28.7]
[1741588035207,7.8414,127.53,127.51,28.7]
[1741588035411,8.86781244,127.55,127.51,28.7]
[1741588035810,8.86781244,127.57,127.51,28.7]
[1741588036010,0.05197023,127.55,127.51,28.7]
[1741588036313,7.89227023,127.55,127.51,36.542]
[1741588036903,0.05197023,127.55,127.52,16.70921244]
[1741588038113,7.89187023,127.55,127.52,8.86781244]
[1741588038715,7.8406,127.54,127.51,36.542]
[1741588038911,7.8406,127.54,127.51,28.7]
[1741588039609,7.89217023,127.55,127.51,36.5419]
[1741588039808,7.89217023,127.55,127.51,28.7]
[1741588040008,7.89217023,127.55,127.52,8.86781244]
[1741588040413,0.05197023,127.55,127.52,8.86781244]
[1741588041616,0.05197023,127.55,127.49,2.0385]
[1741588041915,0.05197023,127.55,127.51,8.86781244]
[1741588042217,7.8405,127.54,127.51,8.86781244]
[1741588042511,8.91978267,127.55,127.51,8.86781244]
[1741588043105,8.91978267,127.55,127.52,7.8417]
[1741588043106,0.05197023,127.55,127.52,7.8417]
[1741588043308,0.05197023,127.55,127.53,37.54781244]
[1741588043716,0.05197023,127.55,127.54,7.8405]
[1741588043911,0.05197023,127.55,127.53,37.54781244]
[1741588044804,0.05197023,127.55,127.53,45.38881244]
[1741588045615,0.05197023,127.55,127.54,7.8405]
[1741588046017,0.05197023,127.55,127.53,37.54781244]
[1741588047117,7.89227023,127.55,127.53,37.54781244]
[1741588047619,0.05197023,127.55,127.49,2.0385]
[1741588047816,7.8412,127.53,127.5,16.71041244]
[1741588048013,7.8412,127.53,127.5,45.39041244]
[1741588050423,7.8408,127.54,127.5,45.39041244]
[1741588050917,7.8408,127.54,127.51,7.8423]
[1741588052225,7.8408,127.54,127.5,37.54781244]
[1741588052422,7.8408,127.54,127.5,45.39041244]
[1741588053417,7.89227023,127.55,127.5,37.54781244]
[1741588053824,7.89227023,127.55,127.51,7.8419]
[1741588054416,7.8406,127.54,127.51,7.8419]
[1741588055630,7.8412,127.53,127.5,45.39051244]
[1741588056424,9.795,127.54,127.51,7.8422]
[1741588057029,1.9543,127.54,127.5,37.54781244]
[1741588057326,7.8414,127.53,127.5,45.39061244]
[1741588059325,1.9543,127.54,127.5,37.54781244]
[1741588059530,9.795,127.54,127.51,7.8422]
[1741588060335,1.9543,127.54,127.5,37.54781244]
[1741588060636,7.8412,127.53,127.5,37.54781244]
[1741588061137,0.05197023,127.55,127.5,37.54781244]
[1741588061434,0.05197023,127.55,127.52,8.86781244]
[1741588061930,7.89207023,127.55,127.52,16.70911244]
[1741588063330,0.05197023,127.55,127.53,7.841]
[1741588064127,0.05197023,127.55,127.52,8.86781244]
[1741588064328,7.89187023,127.55,127.52,16.70911244]
[1741588065735,7.89187023,127.55,127.52,8.86781244]
[1741588066434,0.05197023,127.55,127.5,37.54781244]
[1741588066630,8.91978267,127.55,127.5,45.39041244]
[1741588066830,8.91978267,127.55,127.5,16.71041244]
[1741588067031,8.91978267,127.55,127.5,45.39041244]
[1741588067428,7.841,127.54,127.5,45.39041244]
[1741588067637,8.91978267,127.55,127.5,45.39041244]
[1741588068231,7.8408,127.54,127.5,45.39041244]
[1741588068535,8.91978267,127.55,127.5,45.39041244]
[1741588068836,7.8408,127.54,127.5,45.39041244]
[1741588069135,8.91978267,127.55,127.5,8.86781244]
[1741588069439,8.86781244,127.53,127.46,37.54781244]
[1741588069835,0.04958304,127.51,127.48,8.86781244]
[1741588070233,0.04958304,127.51,127.49,28.68]
[1741588072842,0.04958304,127.51,127.49,36.5234]
[1741588077033,0.04958304,127.51,127.5,7.8429]
[1741588078135,0.04958304,127.51,127.5,9.8436]
[1741588078831,8.86781244,127.56,127.53,7.8409]
[1741588079140,8.86781244,127.56,127.53,28.68]
[1741588080038,8.9270442,127.56,127.53,28.73781996]
[1741588080239,7.8399,127.55,127.53,28.73781996]
[1741588081147,7.8405,127.54,127.53,28.73781996]
[1741588081347,7.8405,127.54,127.53,0.05781996]
[1741588082640,7.8401,127.55,127.53,0.05781996]
[1741588083039,8.9270442,127.56,127.53,0.05781996]
[1741588083242,16.7665442,127.56,127.53,0.05781996]
[1741588083542,0.05923176,127.56,127.54,28.66]
[1741588084246,0.05923176,127.56,127.55,8.86781244]
[1741588084440,0.05923176,127.56,127.55,10.88081244]
[1741588085543,0.05923176,127.56,127.55,18.72071244]
[1741588085844,51.92134183,127.62,127.55,10.88081244]
[1741588086047,7.8365,127.61,127.57,16.70591244]
[1741588086350,8.86781244,127.6,127.58,28.66]
[1741588086648,7.8374,127.59,127.58,28.66]
[1741588086846,7.8374,127.59,127.56,28.66]
[1741588087049,7.8374,127.59,127.57,0.05092047]
[1741588087249,7.838,127.58,127.57,0.05092047]
[1741588087442,16.70581244,127.58,127.53,28.66]
[1741588087746,8.86781244,127.57,127.53,28.66]
[1741588087949,16.70761244,127.56,127.53,28.66]
[1741588088147,7.8398,127.56,127.53,28.66]
[1741588088756,7.89454734,127.56,127.53,28.71452836]
[1741588089849,7.89454734,127.56,127.53,0.05452836]
[1741588090258,7.89454734,127.56,127.53,7.89552836]
[1741588091053,7.89454734,127.56,127.53,0.05452836]
[1741588091858,7.8399,127.55,127.53,0.05452836]
[1741588092751,8.86781244,127.55,127.53,0.05452836]
[1741588092952,16.70831244,127.54,127.53,0.05452836]
[1741588093547,7.8415,127.53,127.5,28.66]
[1741588094153,8.86781244,127.53,127.5,28.66]
[1741588094354,8.86781244,127.53,127.48,8.86781244]
[1741588094355,7.8423,127.51,127.48,45.37181244]
[1741588094657,0.05187579,127.51,127.48,45.37181244]
[1741588096160,0.05187579,127.51,127.48,37.52781244]
[1741588096362,0.05187579,127.51,127.49,8.86781244]
[1741588096866,0.05187579,127.51,127.5,7.8429]
[1741588097860,0.05187579,127.51,127.5,16.71071244]
[1741588098262,0.05187579,127.51,127.5,8.86781244]
[1741588098465,0.05187579,127.51,127.49,16.71111244]
[1741588100271,0.05187579,127.51,127.48,45.37171244]
[1741588100762,0.05187579,127.51,127.48,37.52781244]
[1741588101465,0.05187579,127.51,127.48,45.37161244]
[1741588102271,0.05187579,127.51,127.48,37.52781244]
[1741588102472,8.91968823,127.51,127.47,2.006]
[1741588102767,7.8431,127.5,127.47,30.666]
[1741588103568,7.8437,127.49,127.47,30.666]
[1741588103770,8.91968823,127.51,127.47,30.666]
[1741588103971,8.91968823,127.51,127.47,38.5107]
[1741588104166,8.86781244,127.5,127.47,30.666]
[1741588104365,8.86781244,127.5,127.45,37.52781244]
[1741588104763,7.89965671,127.49,127.45,45.37341244]
[1741588105169,0.05615671,127.49,127.47,8.86781244]
[1741588106160,0.05615671,127.49,127.48,7.8442]
[1741588107674,0.05615671,127.49,127.47,16.71241244]
[1741588107876,0.05615671,127.49,127.47,8.86781244]
[1741588108379,0.05615671,127.49,127.48,7.8442]
[1741588108568,0.05615671,127.49,127.47,8.86781244]
[1741588109069,0.05615671,127.49,127.47,16.71241244]
[1741588109468,0.05615671,127.49,127.48,45.37201244]
[1741588110264,0.05615671,127.49,127.48,28.66]
[1741588110577,0.05615671,127.49,127.46,37.52781244]
[1741588110775,0.05615671,127.49,127.46,45.37291244]
[1741588111075,0.05615671,127.49,127.46,37.52781244]
[1741588111376,7.89975671,127.49,127.46,37.52781244]
[1741588112278,0.05615671,127.49,127.46,37.52781244]
[1741588112877,7.8442,127.48,127.46,37.52781244]
[1741588113077,0.05615671,127.49,127.46,37.52781244]
[1741588113479,7.90005671,127.49,127.46,37.52781244]
[1741588114081,7.8443,127.48,127.46,37.52781244]
[1741588114477,0.05615671,127.49,127.46,8.86781244]
[1741588114683,7.90005671,127.49,127.46,8.86781244]
[1741588114981,8.86781244,127.47,127.37,192.0]
[1741588115179,7.8473,127.43,127.39,8.86781244]
[1741588115880,7.8479,127.42,127.39,8.86781244]
[1741588116081,8.91876682,127.44,127.39,37.52781244]
[1741588116279,1.96198157,127.43,127.39,37.52781244]
[1741588116479,8.91876682,127.44,127.39,37.52781244]
[1741588116780,1.9619824,127.43,127.39,37.52781244]
[1741588116974,8.91876682,127.44,127.39,37.52781244]
[1741588117176,1.9619824,127.43,127.39,37.52781244]
[1741588117374,8.91876682,127.44,127.39,37.52781244]
[1741588117775,16.76536682,127.44,127.39,37.52781244]
[1741588117983,16.76536682,127.44,127.38,2.0857]
[1741588118279,8.86781244,127.43,127.38,39.61351244]
[1741588118680,8.86781244,127.43,127.38,47.46381244]
[1741588118883,16.71511244,127.43,127.38,39.61351244]
[1741588119581,8.86781244,127.43,127.38,10.95351244]
[1741588119984,10.86311244,127.43,127.38,10.95351244]
[1741588120179,18.71041244,127.43,127.38,10.95351244]
[1741588120374,18.71041244,127.43,127.38,2.0857]
[1741588120574,8.86781244,127.41,127.38,2.0857]
[1741588120883,8.86781244,127.4,127.36,36.5113]
[1741588121077,8.86781244,127.4,127.36,7.8513]
[1741588121384,8.86781244,127.38,127.34,36.5325]
[1741588121785,0.05955655,127.37,127.34,36.5325]
[1741588122280,8.92736899,127.37,127.33,8.86781244]
[1741588122482,0.05955655,127.37,127.34,8.86781244]
[1741588122678,0.05955655,127.37,127.33,37.52781244]
[1741588123177,0.05955655,127.37,127.34,7.8526]
[1741588123879,0.05955655,127.37,127.33,45.38081244]
[1741588124083,8.86781244,127.36,127.32,28.68]
[1741588124383,8.92736899,127.37,127.33,7.8531]
[1741588124580,8.92736899,127.37,127.32,37.54781244]
[1741588125188,8.92736899,127.37,127.33,7.8532]
[1741588125384,16.77836899,127.37,127.33,7.8532]
[1741588125681,8.92736899,127.37,127.32,45.40161244]
[1741588125880,7.8517,127.36,127.32,45.40161244]
[1741588126086,16.71951244,127.36,127.32,36.5338]
[1741588126286,7.8522,127.35,127.32,36.5338]
[1741588126784,8.86781244,127.34,127.3,9.8438]
[1741588126980,8.86781244,127.34,127.3,1.989]
[1741588127184,8.92752463,127.33,127.28,8.86781244]
[1741588127383,8.86781244,127.32,127.29,28.68]
[1741588127579,8.86781244,127.32,127.29,36.5358]
[1741588127785,8.86781244,127.32,127.29,28.68]
[1741588128291,7.8544,127.32,127.29,28.68]
[1741588128983,7.91321219,127.33,127.29,28.68]
[1741588129183,0.05971219,127.33,127.29,28.68]
[1741588129592,0.05971219,127.33,127.29,42.67637327]
[1741588129792,0.05971219,127.33,127.3,2.0248]
[1741588130197,0.05971219,127.33,127.32,7.854]
[1741588130496,0.05971219,127.33,127.3,2.0248]
[1741588130699,0.05971219,127.33,127.31,7.8542]
[1741588131699,0.05971219,127.33,127.32,7.854]
[1741588134391,0.05971219,127.33,127.32,36.534]
[1741588135699,18.07387327,127.4,127.36,7.8511]
[1741588136091,18.07387327,127.4,127.35,28.68]
[1741588136092,25.92337327,127.4,127.35,28.68]
[1741588136295,2.0752,127.4,127.38,7.8503]
[1741588136892,2.13536883,127.4,127.38,7.90589489]
[1741588138213,2.13536883,127.4,127.38,0.05559489]
[1741588138415,0.06016883,127.4,127.39,7.8497]
[1741588142719,0.06016883,127.4,127.24,192.0]
[1741588142920,13.99637327,127.36,127.27,13.99637327]
[1741588143112,13.99637327,127.32,127.25,2.1387]
[1741588143311,21.85167327,127.3,127.25,2.1387]
[1741588143512,13.99637327,127.3,127.25,2.1387]
[1741588143810,7.8564,127.29,127.23,28.68]
[1741588144013,0.05905047,127.29,127.23,28.68]
[1741588144415,0.05905047,127.29,127.23,42.67637327]
[1741588144618,0.05905047,127.29,127.23,28.68]
[1741588146120,7.8565,127.28,127.23,28.68]
[1741588149022,7.8574,127.27,127.23,28.68]
[1741588149322,0.05315274,127.26,127.23,28.68]
[1741588150120,7.91105274,127.26,127.23,28.68]
[1741588150721,7.859,127.24,127.23,28.68]
[1741588151116,7.859,127.24,127.22,2.1387]
[1741588151317,7.859,127.24,127.21,28.72]
[1741588152223,0.05315274,127.26,127.2,203.42554654]
[1741588152521,7.8602,127.22,127.2,2.038]
[1741588152717,0.05731031,127.24,127.2,2.038]
[1741588152923,7.8598,127.23,127.2,2.038]
[1741588153314,0.05731031,127.24,127.22,13.99637327]
[1741588153516,0.05731031,127.24,127.22,42.73637327]
[1741588154013,4.0725,127.31,127.24,13.99637327]
[1741588154325,7.8575,127.27,127.25,28.76]
[1741588155024,7.9153016,127.27,127.25,28.81383694]
[1741588155528,0.0578016,127.27,127.25,28.81383694]
[1741588156126,7.9149016,127.27,127.25,28.81383694]
[1741588156626,7.8577,127.26,127.25,28.81383694]
[1741588157626,7.9151016,127.27,127.25,28.81383694]
[1741588159030,7.8577,127.26,127.25,28.81383694]
[1741588160132,0.0578016,127.27,127.25,28.81383694]
[1741588160428,7.9152016,127.27,127.25,28.81383694]
[1741588164730,0.0578016,127.27,127.25,28.81383694]
[1741588165535,0.0578016,127.27,127.25,36.67213694]
[1741588167234,0.0578016,127.27,127.25,28.81383694]
[1741588168432,0.0578016,127.27,127.25,36.67213694]
[1741588169039,0.0578016,127.27,127.26,7.8577]
[1741588169642,0.0578016,127.27,127.26,21.85407327]
[1741588172942,0.0578016,127.27,127.26,7.8577]
[1741588176346,0.0578016,127.27,127.26,16.81573715]
[1741588178242,0.0578016,127.27,127.25,28.81383694]
[1741588179243,7.9149016,127.27,127.25,28.81383694]
[1741588180345,7.9149016,127.27,127.25,0.05383694]
[1741588180645,7.9149016,127.27,127.26,28.7]
[1741588180948,0.0578016,127.27,127.26,28.7]
[1741588181349,7.9152016,127.27,127.25,28.75383694]
[1741588184149,0.0578016,127.27,127.25,36.61153694]
[1741588186150,7.9149016,127.27,127.25,28.75383694]
[1741588186952,0.0578016,127.27,127.25,28.75383694]
[1741588187548,0.0578016,127.27,127.25,36.61183694]
[1741588189448,0.0578016,127.27,127.25,28.75383694]
[1741588190051,0.0578016,127.27,127.25,36.61213694]
[1741588191051,0.0578016,127.27,127.25,28.75383694]
[1741588191243,0.0578016,127.27,127.25,0.05383694]
[1741588191444,0.0578016,127.27,127.25,28.75383694]
[1741588193152,0.0578016,127.27,127.25,36.61203694]
[1741588193555,0.0578016,127.27,127.25,28.75383694]
[1741588194748,0.0578016,127.27,127.26,7.8577]
[1741588195954,0.0578016,127.27,127.26,16.81573715]
[1741588198850,0.0578016,127.27,127.25,0.05383694]
[1741588199150,0.0578016,127.27,127.26,28.7]
[1741588200349,0.0578016,127.27,127.25,0.05383694]
[1741588200950,7.9151016,127.27,127.25,0.05383694]
[1741588201351,0.0578016,127.27,127.25,0.05383694]
[1741588201551,7.8577,127.26,127.25,0.05383694]
[1741588201950,8.95803715,127.26,127.23,28.7]
[1741588202256,8.95803715,127.26,127.21,37.65803715]
[1741588202556,8.95803715,127.26,127.22,16.81783715]
[1741588202557,7.8581,127.26,127.22,16.81783715]
[1741588202854,4.0785016,127.27,127.22,8.95803715]
[1741588203052,4.0785016,127.27,127.22,37.65803715]
[1741588203251,0.0578016,127.27,127.24,8.95803715]
[1741588203450,0.0578016,127.27,127.25,28.7]
[1741588203856,0.0578016,127.27,127.26,8.95803715]
[1741588204453,0.0578016,127.27,127.25,28.7]
[1741588204652,7.9153016,127.27,127.25,28.7]
[1741588205057,0.0578016,127.27,127.25,28.7]
[1741588205954,9.01583875,127.27,127.23,28.72206375]
[1741588207257,0.0578016,127.27,127.24,8.95803715]
[1741588208457,0.0578016,127.27,127.24,16.81683715]
[1741588208658,0.0578016,127.27,127.24,8.95803715]
[1741588209452,0.0578016,127.27,127.25,7.8583]
[1741588209650,0.0578016,127.27,127.26,28.7]
[1741588213358,7.9149016,127.27,127.26,28.7]
[1741588213655,0.0578016,127.27,127.23,28.72206375]
[1741588214050,7.8581,127.26,127.23,0.02206375]
[1741588214257,0.0578016,127.27,127.24,8.95803715]
[1741588215565,0.0578016,127.27,127.24,16.81643715]
[1741588216163,7.9149016,127.27,127.24,16.81643715]
[1741588216363,0.0578016,127.27,127.25,7.8583]
[1741588217054,8.95803715,127.26,127.23,0.02206375]
[1741588217359,8.95803715,127.24,127.12,95.42647805]
[1741588217557,7.864,127.16,127.12,95.42647805]
[1741588218157,8.95803715,127.17,127.12,95.42647805]
[1741588218360,0.05561844,127.15,127.13,28.7]
[1741588218668,0.05561844,127.15,127.14,8.95803715]
[1741588220255,7.92011844,127.15,127.13,28.7]
[1741588220462,0.05561844,127.15,127.13,28.7]
[1741588220767,7.92021844,127.15,127.13,28.7]
[1741588220958,0.05561844,127.15,127.13,28.7]
[1741588221154,0.05561844,127.15,127.11,2.0969]
[1741588221155,0.05561844,127.15,127.1,14.02977851]
[1741588221361,7.8656,127.14,127.11,28.7]
[1741588222467,7.92031844,127.15,127.11,28.7]
[1741588223269,7.92031844,127.15,127.12,28.7]
[1741588224963,7.8651,127.14,127.12,28.7]
[1741588225159,0.05561844,127.15,127.1,28.72]
[1741588226369,0.05561844,127.15,127.09,259.26]
[1741588226563,14.02977851,127.14,127.07,28.72]
[1741588226868,7.8683,127.09,127.06,28.72]
[1741588227168,30.8408,127.13,127.06,28.72]
[1741588227363,0.0596146,127.09,127.06,28.72]
[1741588227567,0.0596146,127.09,127.04,14.02977851]
[1741588227770,0.0596146,127.09,127.04,42.74977851]
[1741588228158,7.9283146,127.09,127.04,14.02977851]
[1741588228369,7.9283146,127.09,127.05,28.74]
[1741588228977,0.0596146,127.09,127.05,28.74]
[1741588229165,0.0596146,127.09,127.06,14.02977851]
[1741588229670,2.149,127.15,127.08,14.02977851]
[1741588229865,32.8825,127.18,127.1,14.02977851]
[1741588230169,4.1025,127.18,127.1,14.02977851]
[1741588230563,11.9655,127.18,127.11,7.8668]
[1741588230763,11.9655,127.18,127.12,28.78]
[1741588230965,0.05327505,127.16,127.13,0.05392729]
[1741588231764,0.05327505,127.16,127.14,14.02977851]
[1741588232071,0.05327505,127.16,127.15,28.78]
[1741588234468,0.05327505,127.16,127.14,14.02977851]
[1741588234665,0.05327505,127.16,127.15,28.78]
[1741588235461,0.05327505,127.16,127.13,28.83392729]
[1741588235662,0.05327505,127.16,127.13,0.05392729]
[1741588235864,2.09517505,127.16,127.13,0.05392729]
[1741588236266,4.24757505,127.16,127.13,0.05392729]
[1741588237769,0.05327505,127.16,127.13,0.05392729]
[1741588238768,0.05327505,127.16,127.14,14.02977851]
[1741588238969,0.05327505,127.16,127.15,28.82]
[1741588239870,0.05327505,127.16,127.15,36.6845]
[1741588241366,6.138,127.21,127.15,28.82]
[1741588241572,7.8604,127.22,127.15,28.82]
[1741588241960,7.8604,127.22,127.18,7.8623]
[1741588242166,7.8604,127.22,127.18,36.6423]
[1741588242567,0.05985969,127.21,127.19,0.05243701]
[1741588243869,0.05985969,127.21,127.19,7.91433701]
[1741588244273,0.05985969,127.21,127.19,0.05243701]
[1741588244470,0.05985969,127.21,127.19,7.91423701]
[1741588245078,0.05985969,127.21,127.19,0.05243701]
[1741588245577,7.92085969,127.21,127.19,0.05243701]
[1741588245973,0.05985969,127.21,127.19,0.05243701]
[1741588246475,7.92075969,127.21,127.19,0.05243701]
[1741588248082,7.8614,127.2,127.19,0.05243701]
[1741588248373,0.05985969,127.21,127.15,28.72]
[1741588248579,1.9716,127.2,127.15,28.72]
[1741588248779,7.863,127.18,127.15,28.72]
[1741588249169,1.9716,127.2,127.15,28.72]
[1741588249369,7.8623,127.19,127.16,0.05520872]
[1741588249580,7.92168654,127.19,127.16,0.05520872]
[1741588249780,0.05938654,127.19,127.17,7.8629]
[1741588250780,0.05938654,127.19,127.18,28.72]
[1741588252777,0.05938654,127.19,127.18,36.5827]
[1741588253275,0.05938654,127.19,127.18,28.72]
[1741588254171,0.05938654,127.19,127.17,28.72]
[1741588255980,0.05938654,127.19,127.17,36.5829]
[1741588256380,0.05938654,127.19,127.17,28.72]
[1741588256887,7.8627,127.18,127.16,0.05520872]
[1741588257088,0.05938654,127.19,127.16,0.05520872]
[1741588257385,7.8633,127.17,127.16,0.05520872]
[1741588260584,7.8659,127.13,127.11,28.72]
[1741588260989,14.02977851,127.16,127.09,28.72]
[1741588261688,7.8671,127.11,127.09,28.72]
[1741588261880,7.8671,127.11,127.08,14.02977851]
[1741588262076,0.06011538,127.11,127.09,28.72]
[1741588262982,0.06011538,127.11,127.1,14.02977851]
[1741588263383,0.06011538,127.11,127.1,21.89737851]
[1741588263583,0.06011538,127.11,127.1,16.01757851]
[1741588264388,0.06011538,127.11,127.1,1.9878]
[1741588264691,0.06011538,127.11,127.09,28.72]
[1741588264891,7.92711538,127.11,127.09,28.72]
[1741588265195,0.06011538,127.11,127.09,28.72]
[1741588266888,0.06011538,127.11,127.09,36.5882]
[1741588268294,0.00711648,127.11,127.1,21.89737851]
[1741588268688,0.00711648,127.11,127.09,36.588]
[1741588268983,0.00711648,127.11,127.09,28.72]
[1741588269392,0.00711648,127.11,127.1,7.8676]
[1741588271092,0.00711648,127.11,127.09,28.77461764]
[1741588271595,0.00711648,127.11,127.09,36.64251764]
[1741588273597,0.00711648,127.11,127.09,28.77461764]
[1741588274394,7.87411648,127.11,127.09,28.77461764]
[1741588274594,0.00711648,127.11,127.09,28.77461764]
[1741588275299,7.87451648,127.11,127.09,28.77461764]
[1741588275905,0.00711648,127.11,127.09,28.77461764]
[1741588276297,7.87441648,127.11,127.09,28.77461764]
[1741588277205,7.8676,127.1,127.09,0.05461764]
[1741588278003,0.00711648,127.11,127.04,216.11117327]
[1741588278208,42.74977851,127.12,127.04,36.5913]
[1741588278597,42.74977851,127.12,127.04,28.72]
[1741588278998,0.05685268,127.09,127.04,28.72]
[1741588279398,0.05685268,127.09,127.04,36.5913]
[1741588279607,7.92545268,127.09,127.04,28.72]
[1741588279998,7.92545268,127.09,127.04,36.591]
[1741588280708,0.05685268,127.09,127.04,36.591]
[1741588281510,0.05685268,127.09,127.04,28.72]
[1741588281909,0.05685268,127.09,127.04,36.591]
[1741588283007,0.05685268,127.09,127.03,273.46977851]
[1741588283216,0.05685268,127.09,127.04,28.74]
[1741588283513,7.8695,127.07,127.04,28.74]
[1741588283710,0.05685268,127.09,127.04,36.6113]
[1741588283915,0.05685268,127.09,127.04,28.74]
[1741588284309,0.05685268,127.09,127.05,7.8705]
[1741588284712,7.92545268,127.09,127.04,28.74]
[1741588284913,0.05685268,127.09,127.04,28.74]
[1741588285213,0.05685268,127.09,127.05,14.02977851]
[1741588285512,0.05685268,127.09,127.07,14.02977851]
[1741588285724,0.05685268,127.09,127.08,36.6689]